Cogmind - Beta 11 @@@ ROGUE MODE // 2022.03.24 @ 09:10:16 Player: Chloroform Result: Destroyed by G-34 Mercenary with Small Laser Performance ------------- Evolutions (0) 0 Regions Visited (1) 200 Robots Destroyed (17) 85 Value Destroyed (401) 401 Prototype IDs (2) 40 Alien Tech Used (0) 0 Bonus (0) 0 TOTAL SCORE: 726 Bonus ------- None Cogmind --------- Core Integrity 0/250 Matter 280/400 Energy 265/265 System Corruption 0% Temperature Cool (6) Movement Rolling (105) Ox1 Location -10/Materials Parts ------- > --- POWER (1) -------- Reinforced Ion Engine > --- PROPULSION (2) --- Armored Wheel Armored Wheel > --- UTILITY (2) ------ Medium Storage Unit Medium Matter Pod > --- WEAPON (2) ------- Medium Laser Heavy Hammer > --- INVENTORY (10) --- Reinforced Ion Engine Reinforced Ion Engine Reinforced Ion Engine Wheel Armored Wheel Armored Wheel Small Laser Grenade Launcher Heavy Hammer Peak State ------------ > --- POWER ------------ Improved Ion Engine > --- PROPULSION ------- Armored Wheel Armored Wheel > --- UTILITY ---------- Improved Heat Sink Large Storage Unit > --- WEAPON ----------- Light Assault Rifle Heavy Hammer > --- INVENTORY -------- Reinforced Ion Engine Reinforced Ion Engine Reinforced Ion Engine Reinforced Ion Engine Light Treads Light Treads Wheel Compact Wheel Armored Wheel Armored Wheel EM Pulse Gun Small Laser Grenade Launcher Heavy Hammer Heavy Hammer [Rating: 15] Favorites ----------- Power Reinforced Ion Engine Engine Reinforced Ion Engine Propulsion Light Treads Treads Light Treads Leg Aluminum Leg Wheel Armored Wheel Utility Medium Storage Unit Device Improved Heat Sink Storage Medium Storage Unit Processor Salvage Targeting Computer Weapon Heavy Hammer Energy Gun Small Laser Ballistic Gun Light Assault Rifle Impact Weapon Heavy Hammer Build | -11 -10 ------- Run | Scr Mat Slots Evolved . | . . Power . | . . Propulsion . | . . Utility . | . . Weapon . | . . Parts Attached 25 | . 25 Power 2 | . 2 Engine 2 | . 2 Core . | . . Reactor . | . . Propulsion 11 | . 11 Treads 4 | . 4 Leg 2 | . 2 Wheel 5 | . 5 Hover . | . . Flight . | . . Utility 5 | . 5 Device 1 | . 1 Storage 3 | . 3 Processor 1 | . 1 Hackware . | . . Protection . | . . Artifact . | . . Weapon 7 | . 7 Energy Gun 3 | . 3 Energy Cannon . | . . Ballistic Gun 2 | . 2 Ballistic Cannon . | . . Launcher . | . . Special Weapon . | . . Impact Weapon 2 | . 2 Slashing Weapon . | . . Piercing Weapon . | . . Special Melee Weapon . | . . Unidentified Prototypes . | . . Parts Lost 3 | . 3 Power 1 | . 1 Propulsion 1 | . 1 Utility . | . . Weapon 1 | . 1 Highest Loss Streak 2 | . 2 To Critical Strikes . | . . Average Slot Usage (%) 91 | . 91 Engine 13 | . 13 Treads 9 | . 9 Leg 4 | . 4 Wheel 12 | . 12 Device 5 | . 5 Storage 14 | . 14 Processor 1 | . 1 Energy Gun 8 | . 8 Ballistic Gun 8 | . 8 Impact Weapon 9 | . 9 Naked Turns . | . . Heaviest Build 35 | 11 35 Greatest Support 40 | 20 40 Greatest Overweight (x) 1 | . 1 Average Overweight (x) . | . . Largest Inventory Capacity 15 | . 15 Average Capacity 11 | . 11 Most Carried 15 | . 15 Average Carried 10 | . 10 Final Capacity 10 | 8 10 Final Carried 9 | 6 9 Class Distribution -------------------- 100% | Mutant Dominant Class ---------------- Mutant | -10/Materials Resources | -11 -10 ----------- Run | Scr Mat Matter Collected 437 | 200 237 Remotely . | . . Salvage Created 468 | . 468 Parts 13 | . 13 Haulers Intercepted . | . . Recyclers Shooed . | . . Parts Field Recycled . | . . Retrieved Matter . | . . Parts Self-Destructed . | . . Prevented . | . . Kills | -11 -10 ------- Run | Scr Mat Combat Hostiles Destroyed 12 | . 12 Melee 6 | . 6 Guns 2 | . 2 Classes Destroyed 6 | . 6 Worker 2 | . 2 Builder 1 | . 1 Operator 1 | . 1 Watcher 1 | . 1 Swarmer 3 | . 3 Grunt 9 | . 9 Best Kill Streak 5 | . 5 Combat Bots Only 3 | . 3 Max Kills in Single Turn 1 | . 1 Gunslinging . | . . Exploded . | . . Melee 1 | . 1 Uniques/NPCs Destroyed . | . . Combat | -11 -10 -------- Run | Scr Mat Damage Taken 1122 | . 1122 Core 257 | . 257 Absorbed by Shields . | . . Regen/Repaired (Parts) 18 | . 18 Core Remaining (%) 100 | 100 . Volleys Fired 27 | . 27 Largest 2 | . 2 Hottest 60 | . 60 Shots Fired 43 | . 43 Gun 43 | . 43 Cannon . | . . Launcher . | . . Special . | . . Kinetic 22 | . 22 Thermal 16 | . 16 Explosive . | . . Electromagnetic 5 | . 5 Robot Hit Streak 8 | . 8 Robot Miss Streak 3 | . 3 Penetration Max . | . . Secondary Targets . | . . Shots Hit Robots 58 | . 58 Core Hits 16 | . 16 Critical Kills . | . . Critical Parts Destroyed 5 | . 5 Critical Strikes 5 | . 5 Smash 5 | . 5 Melee Attacks 38 | . 38 Impact 38 | . 38 Slashing . | . . Piercing . | . . Sneak Attacks 3 | . 3 Combat Hostiles . | . . Follow-up Attacks . | . . Damage Inflicted 1450 | . 1450 Guns 293 | . 293 Cannons . | . . Explosions . | . . Melee 1157 | . 1157 Ramming . | . . Kinetic 125 | . 125 Thermal 113 | . 113 Explosive . | . . Electromagnetic 55 | . 55 Impact 1157 | . 1157 Slashing . | . . Piercing . | . . Highest Corruption . | . . Average Corruption . | . . Corruption Purged . | . . Corruption Blocked . | . . Overload Shots . | . . Overflow Damage 331 | . 331 Projectiles . | . . Explosions . | . . Melee 331 | . 331 Knockbacks 6 | . 6 Impact 6 | . 6 Kinetic . | . . Secondary . | . . Self-Inflicted Damage . | . . Shots . | . . Rammed . | . . Targets Rammed . | . . Kicked . | . . Crushed . | . . Highest Temperature 297 | . 297 Average Temperature 135 | . 135 Received Heat Transfer 576 | . 576 Siege Activations . | . . Robots Corrupted . | . . Combat Hostiles . | . . Parts Fried 10 | . 10 Impact Corruptions 17 | . 17 Robots Melted . | . . Combat Hostiles . | . . Parts Melted 2 | . 2 Heat Transferred 286 | . 286 Parts Sabotaged . | . . Parts Stolen . | . . Parts Stripped . | . . Power Chain Reactions . | . . Missiles Intercepted . | . . Alert | -11 -10 ------- Run | Scr Mat Peak Influence 275 | . 275 Initial . | . . Average 93 | . 93 Maximum Alert Level 1 | . 1 Low Security (%) 84 | . 84 Level 1 15 | . 15 Level 2 . | . . Level 3 . | . . Level 4 . | . . Level 5 . | . . High Security . | . . Max Security . | . . Squads Dispatched 2 | . 2 Investigation 2 | . 2 Extermination . | . . Reinforcement . | . . Assault . | . . Garrison . | . . Intercept . | . . Searches Triggered . | . . Construction Impeded . | . . Haulers Reinforced . | . . Active Scanning Responses . | . . Cargo Convoy Interrupts . | . . Stealth | -11 -10 --------- Run | Scr Mat Distress Signals 1 | . 1 Communications Jammed . | . . Distress Signals . | . . Times Spotted 17 | . 17 Peak Tracking Total 5 | . 5 Tactical Retreats 1 | . 1 Traps | -11 -10 ------- Run | Scr Mat Traps Triggered . | . . Indirectly . | . . Trap Hack Attempts . | . . Triggered . | . . Disarmed . | . . Reprogrammed . | . . Reused . | . . Traps Extracted . | . . Installed . | . . Triggered . | . . Machines | -11 -10 ---------- Run | Scr Mat Machines Disabled . | . . Max in Single Turn . | . . Machines Sabotaged . | . . Garrisons Compromised . | . . Overloaded Fab Kills . | . . Hacking | -11 -10 --------- Run | Scr Mat Machines Accessed 5 | . 5 Terminals 4 | . 4 Fabricators . | . . Repair Stations 1 | . 1 Recycling Units . | . . Scanalyzers . | . . Garrison Access . | . . Total Hacks 20 | . 20 Successful 16 | . 16 Failed 4 | . 4 Catastrophic 1 | . 1 Database Lockouts . | . . Manual 13 | . 13 Terminals 17 | . 17 Fabricators . | . . Repair Stations 3 | . 3 Recycling Units . | . . Scanalyzers . | . . Garrison Access . | . . Terminal Hacks 7 | . 7 Record 4 | . 4 Prototype ID Bank 1 | . 1 Alert Level 1 | . 1 Locate Traps 1 | . 1 Fabricator Hacks . | . . Repair Station Hacks 2 | . 2 Scan Component 1 | . 1 Repair 1 | . 1 Recycling Unit Hacks . | . . Scanalyzer . | . . Garrison Access Hacks . | . . Unauthorized Hacks 7 | . 7 Terminals 7 | . 7 Track 4 | . 4 Botnet 3 | . 3 Fabricators . | . . Repair Stations . | . . Recycling Units . | . . Scanalyzers . | . . Garrison Access . | . . Data Cores Recovered . | . . Used . | . . Hacking Detections 3 | . 3 Full Trace Events 2 | . 2 Feedback Events . | . . Feedback Blocked . | . . Robot Schematics Acquired . | . . Robots Built . | . . Authchips . | . . Time . | . . Total Robot Build Rating . | . . Part Schematics Acquired . | . . Parts Built . | . . Authchips . | . . Time . | . . Total Part Build Rating . | . . Parts Repaired 1 | . 1 Time 13 | . 13 Parts Recycled . | . . Recycled Matter . | . . Retrieved Matter . | . . Retrieved Components . | . . Parts Scanalyzed . | . . Part Schematics Acquired . | . . Parts Damaged . | . . Bothacking | -11 -10 ------------ Run | Scr Mat Used RIF Installer . | . . Robots Hacked . | . . Non-combat . | . . Combat . | . . Robot Hacks Applied . | . . Relay Couplers Released . | . . Fabnet Peak Effective % . | . . Robots Rewired . | . . Allies Hacked . | . . Hacks Repelled . | . . Allies | -11 -10 -------- Run | Scr Mat Total Allies . | . . Largest Group . | . . Highest-Rated Group . | . . Highest-Rated Ally . | . . Total Orders . | . . Ally Attacks . | . . Total Damage . | . . Kills . | . . Allies Corrupted . | . . Allies Melted . | . . Intel | -11 -10 ------- Run | Scr Mat Robot Analysis Total . | . . Derelict Logs Recovered . | . . Drone Launches . | . . Drone Recoveries . | . . Exploration | -11 -10 ------------- Run | Scr Mat Turns Passed 675 | . 675 Spaces Moved 336 | 1 335 Core . | . . Treads 111 | . 111 Legs 37 | 1 36 Wheels 188 | . 188 Hover . | . . Flight . | . . Fastest Speed 95 | 120 95 Average Speed 126 | 120 126 Slowest Speed 240 | 120 240 Overloaded Moves . | . . Propulsion Burnouts . | . . Robots Hopped . | . . Cave-ins Triggered . | . . Exploration Rate (%) 32 | 2 63 Regions Visited 1 Branch Regions . Pre-discovered Areas . | . . Known Exits Taken . | . . Unknown Exits Taken 1 | 1 . Scrap Searched . | . . Spaces Dug . | . . Terrain Destroyed . | . . Melee . | . . Projectile . | . . AOE . | . . Terrain Rammed . | . . Walls Destroyed . | . . Machines Disabled . | . . Actions | -11 -10 --------- Run | Scr Mat Total 483 | . 483 Wait 22 | . 22 Move 335 | . 335 Hop . | . . Pick Up 19 | . 19 Fast Attach 3 | . 3 Attach 4 | . 4 Detach . | . . Swap 18 | . 18 Drop 17 | . 17 Fire 27 | . 27 Melee 38 | . 38 Ram . | . . Kick . | . . Crush . | . . Escape Stasis . | . . Rewire . | . . Trap . | . . Miscellaneous . | . . Route ------- -11/Scrapyard -10/Materials (discovered 2 exits: [*Mat x2]) History --------- Turn | Location | Event 1 | -11/Scrapyard | Discovered new exit (range 0) 1 | -11/Scrapyard | Entered Materials 247 | -10/Materials | Discovered new exit (range 16) 328 | -10/Materials | Build established: Mutant 430 | -10/Materials | Core integrity fell below 50% 602 | -10/Materials | Core integrity fell below 20% 662 | -10/Materials | Discovered new exit (range 7) 673 | -10/Materials | Repaired Com. Wheel 676 | -10/Materials | Destroyed by G-34 Mercenary with Small Laser Last Messages --------------- >>Trojan(Track) Trojan loaded successfully. Testing... Tracking enabled and active. >>Traps(Locate) No traps found in local area. 00660_ Connecting with Repair Station... >>Scan(Com. Wheel) Scanning Com. Wheel... Ready to Repair: Com. Wheel Rating: 1 Time: 13 >>Repair Repairing Com. Wheel... ETC: 13 00660_ ALERT: Suspicious activity at Repair Station M001. Dispatching Investigation squad. 00662_ EXIT=FOUND 00673_ Repair station completes Com. Wheel repairs. Map ----- +----------------------------------------------------+ | # # ####%! + """?# """ | | # ### #??# # # | | # #?# #??# #??????# | | # #?# #??# #??????# | | # #?#### ##########+#??????# | | # #????# ## ## #??????# | | # #????# ## " ## ######## | | ######+##????#%## T # | | ?????# #######+## " + | | ?????# # % # # | | ?????# #k # ###+####### | | ###### # #[ ! #?# ## | | # T # # # #?# ## | | # # # # """#?# ## | | # # # # """#?# ## | | # =# # # """#?# ## | | # %+*# # #?# ## | | # #=# ########?######### | | # # #####+#######?????????????# | | # # #??????###########+# | | # # #??????# = | | ###### #??????# """ | | ?????#######+### #??????# !!! = """ | | ????????# #???#??????# !! """= | | ????????#""" #??????????# !! | | ????????#"R= @#??????????#########+### | | ????????#""" g #????????####### | | ????????#""" # < #????????# | | ????????# # #????????# ##### | | ????????########?###????????# #???##### | | ????????????????????????????# #???????? | | ????????????????????????????# #?#####?? | | ????????????????????????????# ### ### | | ????????????????????????????# | | ????????????????????????????##### ### | | ????????????????????????????????#####?? | | ??????????????????????????????????????? | | ??????????????????????????????????????? | | ??????????????????????????????????????? | | | | | | | | | | | | | | | | | | | | | | | +----------------------------------------------------+ Best States ------------- Heat Dissipation 39 Energy Generation 12 Energy Capacity 265 Matter Stores 300 Matter Capacity 400 Sight Range 16 Terrain Scan Density 10 Evasion (%) 50 Recoil Reduction 2 Salvage Targeting 1 Item Schematics ----------------- None Robot Schematics ------------------ None Fabricated ------------ Nothing Alien Tech Used ----------------- None Achievements -------------- Quantum Hacking Challenges ------------ None Game ------ Seed CloakingIntegrityThrower Manual? 0 Play Time 00:15:53 Cumulative 9.9 hours Start 2022.03.24 @ 08:51:06 End 2022.03.24 @ 09:10:16 Sessions 1 Manual Loads 0 Difficulty Rogue Special Mode None Game No. 16 Rogue 13 Adventurer 3 Explorer 0 Win Type - Total 0 Types 0/0/0/0/0/0/0/0/0 Lore% 12 Gallery% 18 Achievement% 18 Wizard Run 0 Options --------- ASCII 0 Keyboard 0 Movement Mouse Keybinds 0 Fullscreen 2 Font 18/SmallcapsGlow Map View 76x50 Tactical HUD 1 Map Filters NONE Filters NONE Steam 1 RUN: 23b89d44-47fa-4598-bfaf-0e029773a5c8